{"text_format":"1","workbook":"xlsx","n_sheets":9,"sheets":["一般・市街地","一般・田園","一般・山地森林","←一般地域","空","西箕輪→","西箕輪・田園","西箕輪・沿道","西箕輪・山地高原"],"not_rendered":{"charts":0,"images":3,"macros":1,"external_links":0,"defined_names":16,"comments":0,"pivot_tables":0},"unopened":[],"bounds":{"document_bytes":16777216,"sheet_cells":100000,"rows_first":2000,"rows_last":500,"rows_between":2000,"halvings":0,"cell_chars":16384,"cell_head_chars":4096},"cells_cut":0,"cells_raw":0,"read":"whole","date_system":"1900"}

{"sheet":"一般・市街地","index":0,"n_rows":67,"n_cols":15,"rows_kept":67,"cut":false,"hidden":false,"merged":[[31,5,39,5],[49,5,57,6],[34,4,39,4],[2,6,2,7],[2,0,2,1],[3,1,9,1],[10,1,16,1],[17,1,27,1],[28,1,30,1],[31,1,40,1],[34,3,39,3],[3,0,6,0],[7,0,40,0],[1,0,1,3],[63,0,64,1],[65,0,66,1],[41,1,48,1],[50,0,57,0],[50,1,51,1],[53,1,54,1],[55,1,57,1],[41,0,44,0],[45,0,49,0],[58,0,60,1],[61,0,62,1]]}
[null,null,"地域区分：",null,null,{"$f":"HYPERLINK(\"#空!F6\",\"　●戻る　\")","v":"　●戻る　"},null,null,null,null,null,null,null,null,"□はい　□いいえ　□該当なし,■はい　□いいえ　□該当なし,□はい　■いいえ　□該当なし,□はい　□いいえ　■該当なし"]
["景観形成基準チェックシート（一般地域：市街地）",null,null,null,"↓キーボードで直接打込めます"]
["行為制限事項",null,"市　街　地","チェック欄","入力欄",null,"入力欄凡例"]
["建 築 物\n工 作 物\nの建設\n外観変更","配　　置","中心街では隣接地と相互に協力し、壁面線を合せ、道路沿いにまとまった空間を生み出すよう努める",{"$f":"VLOOKUP(E4,$G$4:$I$7,3,TRUE)","v":"□はい　□いいえ　□該当なし"},1,null,1,"□空欄","□はい　□いいえ　□該当なし"]
[null,null,"道路側に緑化を行う空間を確保するよう努める",{"$f":"VLOOKUP(E5,$G$4:$I$7,3,TRUE)","v":"□はい　□いいえ　□該当なし"},1,null,2,"■はい","■はい　□いいえ　□該当なし"]
[null,null,"既存樹木・水辺を生かす","□はい　□いいえ　□該当なし",1,null,3,"■いいえ","□はい　■いいえ　□該当なし"]
[null,null,"山岳・段丘眺望等、周囲からの見え方を考慮した配置とする","□はい　□いいえ　□該当なし",1,null,4,"■該当なし","□はい　□いいえ　■該当なし"]
["（建物など）",null,"電柱・鉄塔は目立たないよう配置","□はい　□いいえ　□該当なし",1]
[null,null,"段丘崖の上端付近では、段丘林の連続性やたたずまいを阻害しないように配慮する","□はい　□いいえ　□該当なし",1]
[null,null,"【沿道】支障のある場合を除いて、５ｍ以上道路から後退する（大規模行為）","□はい　□いいえ　■該当なし",4,{"$f":"HYPERLINK(\"#西箕輪→!L21\",\"●軸について\")","v":"●軸について"}]
[null,"規　　模","山岳・段丘眺望等、周囲からの見え方に配慮した規模・高さ","□はい　□いいえ　□該当なし",1]
[null,null,"周辺基調景観から突出しない規模・高さ","□はい　□いいえ　□該当なし",1]
[null,null,"建築物等と敷地のつり合い配慮","□はい　□いいえ　□該当なし",1]
[null,null,"まち並みの連続性に配慮した高さ","□はい　□いいえ　□該当なし",1]
[null,null,"原則高さ３１m以下","□はい　□いいえ　□該当なし",1]
[null,null,"【沿道】空地を確保し、圧迫感を避ける（高層の場合）","□はい　□いいえ　■該当なし",4]
[null,null,"【河川】河川の見通しを妨げない規模・高さ","□はい　□いいえ　■該当なし",4,{"$f":"HYPERLINK(\"#西箕輪→!L29\",\"●軸について\")","v":"●軸について"}]
[null,"形態意匠","正面（道路側）デザインに留意","□はい　□いいえ　□該当なし",1]
[null,null,"上部デザインの工夫（高層の場合）","□はい　□いいえ　□該当なし",1]
[null,null,"伝統様式を取り入れた意匠（伝統的建築物の多い地域）","□はい　□いいえ　□該当なし",1]
[null,null,"大規模平滑面を避け、壁面処理に配慮","□はい　□いいえ　□該当なし",1]
[null,null,"屋根・壁・開口部等の意匠工夫で圧迫感・威圧感を軽減（規模が大きい場合）","□はい　□いいえ　□該当なし",1]
[null,null,"道路・河川・鉄道に面する壁面等のデザイン配慮","□はい　□いいえ　□該当なし",1]
[null,null,"屋上設備の壁・ルーバー設置","□はい　□いいえ　□該当なし",1]
[null,null,"屋外階段や露出配管等の付帯物や広告物のデザイン配慮、建築物本体との調和","□はい　□いいえ　□該当なし",1]
[null,null,"【沿道】道路沿いからの見え方に配慮し上部や正面デザイン工夫、連続性形成","□はい　□いいえ　■該当なし",4]
[null,null,"【河川】河川沿いからの見え方に配慮し上部や正面デザイン工夫、連続性形成","□はい　□いいえ　■該当なし",4]
[null,null,"【段丘】段丘林の連続性、佇まいを阻害しないよう外観に十分配慮","□はい　□いいえ　■該当なし",4,{"$f":"HYPERLINK(\"#西箕輪→!L31\",\"●軸について\")","v":"●軸について"}]
[null,"材　　料","耐久性に優れた材料を使用","□はい　□いいえ　□該当なし",1]
[null,null,"反射光材使用の場合、周辺との調和に十分配慮","□はい　□いいえ　□該当なし",1]
[null,null,"地場産材、地域を特徴づける素材を活用","□はい　□いいえ　□該当なし",1]
[null,"色 彩 等","けばけばしい色彩とせず、周辺建築物等と調和","□はい　□いいえ　□該当なし",1,"着色した立面図等に\nマンセル値を\n記載してください。"]
[null,null,"複数色の場合、色彩相互の調和や使用量のバランスに配慮","□はい　□いいえ　□該当なし",1]
[null,null,"照明は周辺に配慮し、魅力的な夜間景観形成に努める","□はい　□いいえ　□該当なし",1]
[null,null,"（屋根）R、YR、Y、GYは彩度７以下　その他は彩度４以下　明度は周辺と調和","□はい　□いいえ　□該当なし",1]
[null,null,"（外壁）R、YR、Y、GYは彩度７以下　その他は彩度４以下　明度は周辺と調和",{"$error":"#N/A"}]
[null,null,"＜適用除外＞外壁各面の見付面積の１／５以内のアクセント色で、支障ないもの",{"$error":"#N/A"}]
[null,null,"＜適用除外＞石・木材・土・レンガ・ガラス等、素材本来の色彩のもの",{"$error":"#N/A"}]
[null,null,"＜適用除外＞地域の伝統継承色彩のもの",{"$error":"#N/A"}]
[null,null,"＜適用除外＞その他法令義務のもの",{"$error":"#N/A"}]
[null,null,"【段丘】段丘林等、周囲の自然に馴染む色彩","□はい　□いいえ　■該当なし",4]
[{"$f":"A4","v":"建 築 物\n工 作 物\nの建設\n外観変更"},"敷地の緑化","樹木・草花で通りに面したスペースの緑化を行い、潤いの創出に努める","□はい　□いいえ　□該当なし",1]
[null,null,"外部から見える敷地境界は樹木活用、門・塀は生垣、壁緑化等の意匠工夫配慮","□はい　□いいえ　□該当なし",1]
[null,null,"比較的大規模な建築物等は、建物周囲の高木配置等で威圧感・圧迫感軽減に努める","□はい　□いいえ　□該当なし",1]
[null,null,"駐車・駐輪場は道路から直接見えにくいよう周囲や場内の植栽等、緑化に努める","□はい　□いいえ　□該当なし",1]
["（外構など）",null,"樹種は地域風土に合ったもの、道路空間の連続性に配慮","□はい　□いいえ　□該当なし",1]
[null,null,"段丘崖上端側の緑化を行い、段丘林の連続性、佇まいを阻害しないよう配慮","□はい　□いいえ　□該当なし",1]
[null,null,"【河川】河川沿いの憩い・潤い景観が続くよう、植栽、鉢植等の緑化に努める","□はい　□いいえ　■該当なし",4]
[null,null,"【段丘】段丘林の連続性、佇まいを阻害しないよう、周囲を緑化","□はい　□いいえ　■該当なし",4]
[null,"自動販売機","外観は落ち着いた色調、複数台設置時は囲いで覆う等の工夫","□はい　□いいえ　■該当なし",4,"自販機、看板、広告等を\n設置、表示等する場合は\n内容確認してください。\nあわせて\n伊那市屋外広告物条例の\n手続きを確認ください。"]
["特定外観意匠に\n関する付加基準\n（看板、広告など）","配　　置","道路等からの後退に努める","□はい　□いいえ　■該当なし",4]
[null,null,"河川等の水辺や山なみの眺望を阻害しないよう努める","□はい　□いいえ　■該当なし",4]
[null,"規模、形態・意匠","周辺の基調景観に調和する形態意匠とし、必要最小限の規模","□はい　□いいえ　■該当なし",4]
[null,"材　　料","周辺景観と調和し、高耐久性で退色・はく離の生じにくいもの","□はい　□いいえ　■該当なし",4]
[null,null,"反射光材使用の場合、周辺との調和に十分配慮","□はい　□いいえ　■該当なし",4]
[null,"色 彩 等","けばけばしい色彩とせず、周辺建築物等と調和","□はい　□いいえ　■該当なし",4]
[null,null,"使用色数を少なくする","□はい　□いいえ　■該当なし",4]
[null,null,"光源が動くものは、周辺景観との調和に留意","□はい　□いいえ　■該当なし",4]
["土 地 の 形 質 の 変 更\n（1,000㎡＜ または H＞2M）",null,"大規模な法面、擁壁を生じないようにし、緩やかな勾配、緑化に努める","□はい　□いいえ　■該当なし",4]
[null,null,"擁壁は材料や表面処理の工夫、前面緑化等により周辺との調和を図る","□はい　□いいえ　■該当なし",4]
[null,null,"敷地内の樹林、樹木、河川、水辺等は極力保全し、活用に努める","□はい　□いいえ　■該当なし",4]
["土石の採取及び鉱物の掘採",null,"周辺から目立たないよう採取の位置・方法を工夫し、敷地周囲の緑化等に努める","□はい　□いいえ　■該当なし",4]
[null,null,"採取後、自然植生と調和した緑化で修景する","□はい　□いいえ　■該当なし",4]
["屋外における物件の堆積",null,"高さをできるだけ低くし、整然と、威圧感の無いよう堆積する","□はい　□いいえ　■該当なし",4]
[null,null,"道路等から見えにくいよう遮蔽（植栽、木塀等、周辺景観と調和するもので遮蔽）","□はい　□いいえ　■該当なし",4]
["木竹の伐採\n【河岸段丘】",null,"【段丘】段丘林の連続性が失われる伐採は避ける","□はい　□いいえ　■該当なし",4]
[null,null,"【段丘】伐採する場合は既存樹木残置や新たな植栽等、法面の緑化に配慮","□はい　□いいえ　■該当なし",4]

{"sheet":"一般・田園","index":1,"n_rows":66,"n_cols":9,"rows_kept":66,"cut":false,"hidden":false,"merged":[[30,5,38,5],[64,0,65,1],[40,1,47,1],[49,0,56,0],[49,1,50,1],[52,1,53,1],[54,1,56,1],[40,0,43,0],[44,0,48,0],[48,5,56,6],[1,0,1,3],[57,0,59,1],[60,0,61,1],[62,0,63,1],[2,6,2,7],[33,4,38,4],[2,0,2,1],[3,1,9,1],[10,1,16,1],[17,1,26,1],[27,1,29,1],[30,1,39,1],[33,3,38,3],[3,0,6,0],[7,0,39,0]]}
[null,null,"地域区分：",null,null,{"$f":"HYPERLINK(\"#空!F6\",\"　●戻る　\")","v":"　●戻る　"}]
["景観形成基準チェックシート（一般地域：田園）",null,null,null,"↓キーボードで直接打込めます"]
["行為制限事項",null,"田　園","チェック欄","入力欄",null,"入力欄凡例"]
[{"$f":"一般・市街地!A4","v":"建 築 物\n工 作 物\nの建設\n外観変更"},{"$f":"一般・市街地!B4","v":"配　　置"},"道路からできるだけ後退し、空地を確保するよう努める",{"$f":"VLOOKUP(E4,$G$4:$I$7,3,TRUE)","v":"□はい　□いいえ　□該当なし"},1,null,1,"□空欄","□はい　□いいえ　□該当なし"]
[null,null,"隣接境界からの離隔確保","□はい　□いいえ　□該当なし",1,null,2,"■はい","■はい　□いいえ　□該当なし"]
[null,null,"既存樹木・水辺を生かす","□はい　□いいえ　□該当なし",1,null,3,"■いいえ","□はい　■いいえ　□該当なし"]
[null,null,"山岳・段丘眺望等、周囲からの見え方考慮","□はい　□いいえ　□該当なし",1,null,4,"■該当なし","□はい　□いいえ　■該当なし"]
[{"$f":"一般・市街地!A8","v":"（建物など）"},null,"電柱・鉄塔は目立たないよう配置","□はい　□いいえ　□該当なし",1]
[null,null,"段丘崖の上端付近では、段丘林の連続性やたたずまいを阻害しないように配慮する","□はい　□いいえ　□該当なし",1]
[null,null,"【沿道】道路側後退５m以上（大規模行為）","□はい　□いいえ　■該当なし",4,{"$f":"HYPERLINK(\"#西箕輪→!L21\",\"●軸について\")","v":"●軸について"}]
[null,{"$f":"一般・市街地!B11","v":"規　　模"},"山岳・段丘眺望等、周囲からの見え方に配慮した規模・高さ","□はい　□いいえ　□該当なし",1]
[null,null,"周辺基調景観から突出しない規模・高さ","□はい　□いいえ　□該当なし",1]
[null,null,"建築物等と敷地のつり合い配慮","□はい　□いいえ　□該当なし",1]
[null,null,"極力抑えた規模・高さ","□はい　□いいえ　□該当なし",1]
[null,null,"原則高さ１８m以下（工業団地３１m以下）","□はい　□いいえ　□該当なし",1]
[null,null,"【沿道】空地を確保し、圧迫感を生じないように努める（高層の場合）","□はい　□いいえ　■該当なし",4]
[null,null,"【河川】河川の見通しを妨げない規模・高さ","□はい　□いいえ　■該当なし",4,{"$f":"HYPERLINK(\"#西箕輪→!L29\",\"●軸について\")","v":"●軸について"}]
[null,{"$f":"一般・市街地!B18","v":"形態意匠"},"適度な軒の出のある勾配屋根（スカイライン、周辺との調和）","□はい　□いいえ　□該当なし",1]
[null,null,"伝統様式を取り入れた意匠（伝統的建築物の多い地域）","□はい　□いいえ　□該当なし",1]
[null,null,"大規模平滑面を避け、壁面処理に配慮","□はい　□いいえ　□該当なし",1]
[null,null,"屋根・壁・開口部等の意匠工夫で圧迫感・威圧感を軽減（規模が大きい場合）","□はい　□いいえ　□該当なし",1]
[null,null,"道路・河川・鉄道に面する壁面等のデザイン配慮","□はい　□いいえ　□該当なし",1]
[null,null,"屋上設備の壁・ルーバー設置","□はい　□いいえ　□該当なし",1]
[null,null,"屋外階段や露出配管等の付帯物や広告物のデザイン配慮、建築物本体との調和","□はい　□いいえ　□該当なし",1]
[null,null,"【沿道】道路沿いからの見え方に配慮し上部や正面デザイン工夫、連続性形成","□はい　□いいえ　■該当なし",4]
[null,null,"【河川】河川沿いからの見え方に配慮し上部や正面デザイン工夫、連続性形成","□はい　□いいえ　■該当なし",4]
[null,null,"【段丘】段丘林の連続性、佇まいを阻害しない、外観に十分配慮","□はい　□いいえ　■該当なし",4,{"$f":"HYPERLINK(\"#西箕輪→!L31\",\"●軸について\")","v":"●軸について"}]
[null,{"$f":"一般・市街地!B29","v":"材　　料"},"耐久性に優れた材料を使用","□はい　□いいえ　□該当なし",1]
[null,null,"反射光材の壁面大部分への使用を避ける","□はい　□いいえ　□該当なし",1]
[null,null,"地場産材、地域を特徴づける素材、自然素材を活用","□はい　□いいえ　□該当なし",1]
[null,{"$f":"一般・市街地!B32","v":"色 彩 等"},"けばけばしい色彩とせず、落ち着いた色彩を基調、周辺の田園・集落と調和した色調","□はい　□いいえ　□該当なし",1,"着色した立面図等に\nマンセル値を\n記載してください。"]
[null,null,"使用色数を少なくする","□はい　□いいえ　□該当なし",1]
[null,null,"照明は落ち着き・温かみを、ネオンサイン、点滅、光源が動くものの使用を避ける","□はい　□いいえ　□該当なし",1]
[null,null,"（屋根）R、YR、Y、GYは彩度７以下　その他は彩度４以下　明度は周辺と調和","□はい　□いいえ　□該当なし",1]
[null,null,"（外壁）R、YR、Y、GYは彩度７以下　その他は彩度４以下　明度は周辺と調和",{"$error":"#N/A"}]
[null,null,"＜適用除外＞外壁各面の見付面積の１／５以内のアクセント色で、支障ないもの",{"$f":"VLOOKUP(E36,$G$4:$I$7,3,TRUE)","v":{"$error":"#N/A"}}]
[null,null,"＜適用除外＞石・木材・土・レンガ・ガラス等、素材本来の色彩のもの",{"$error":"#N/A"}]
[null,null,"＜適用除外＞地域の伝統継承色彩のもの",{"$error":"#N/A"}]
[null,null,"＜適用除外＞その他法令義務のもの",{"$error":"#N/A"}]
[null,null,"【段丘】段丘林等、周囲の自然に馴染む色彩","□はい　□いいえ　■該当なし",4]
[{"$f":"一般・市街地!A42","v":"建 築 物\n工 作 物\nの建設\n外観変更"},{"$f":"一般・市街地!B42","v":"敷地の緑化"},"既存樹木を残し、住宅地は植栽等による集落景観形成に努める","□はい　□いいえ　□該当なし",1]
[null,null,"外部から見える敷地境界は樹木活用、門・塀は生垣、壁面緑化等の意匠工夫配慮","□はい　□いいえ　□該当なし",1]
[null,null,"比較的大規模な建築物等は、建物周囲の高木配置等で威圧感・圧迫感軽減に努める","□はい　□いいえ　□該当なし",1]
[null,null,"駐車・駐輪場は道路から直接見えにくいよう周囲や場内の植栽等、緑化に努める","□はい　□いいえ　□該当なし",1]
[{"$f":"一般・市街地!A46","v":"（外構など）"},null,"樹種は地域に根付いたものを基本とし、周辺樹林等と調和するもの","□はい　□いいえ　□該当なし",1]
[null,null,"段丘崖上端側の緑化を行い、段丘林の連続性、たたずまいを阻害しないよう配慮","□はい　□いいえ　□該当なし",1]
[null,null,"【河川】河川沿いの憩い・潤い景観が続くよう、植栽、鉢植等の緑化に努める","□はい　□いいえ　■該当なし",4]
[null,null,"【段丘】段丘林の連続性、佇まいを阻害しないよう、周囲を緑化","□はい　□いいえ　■該当なし",4]
[null,{"$f":"一般・市街地!B50","v":"自動販売機"},"外観は落ち着いた色調、複数台設置時は囲いで覆う等の工夫","□はい　□いいえ　■該当なし",4,"自販機、看板、広告等を\n設置、表示等する場合は\n内容確認してください。\nあわせて\n伊那市屋外広告物条例の\n手続きを確認ください。"]
[{"$f":"一般・市街地!A51","v":"特定外観意匠に\n関する付加基準\n（看板、広告など）"},{"$f":"一般・市街地!B51","v":"配　　置"},"道路等からの後退に努める","□はい　□いいえ　■該当なし",4]
[null,null,"河川等の水辺や山なみの眺望を阻害しないよう努める","□はい　□いいえ　■該当なし",4]
[null,{"$f":"一般・市街地!B53","v":"規模、形態・意匠"},"周辺の基調景観に調和する形態意匠とし、必要最小限の規模","□はい　□いいえ　■該当なし",4]
[null,{"$f":"一般・市街地!B54","v":"材　　料"},"周辺景観と調和し、高耐久性で退色・はく離の生じにくいもの","□はい　□いいえ　■該当なし",4]
[null,null,"反射光材使用の場合、周辺との調和に十分配慮","□はい　□いいえ　■該当なし",4]
[null,{"$f":"一般・市街地!B56","v":"色 彩 等"},"けばけばしい色彩とせず、落ち着いた色彩を基調、周辺の田園・集落と調和した色調","□はい　□いいえ　■該当なし",4]
[null,null,"使用色数を少なくする","□はい　□いいえ　■該当なし",4]
[null,null,"光源が動くものの使用を避ける","□はい　□いいえ　■該当なし",4]
[{"$f":"一般・市街地!A59","v":"土 地 の 形 質 の 変 更\n（1,000㎡＜ または H＞2M）"},null,"大規模な法面、擁壁を生じないようにし、緩やかな勾配、緑化に努める","□はい　□いいえ　■該当なし",4]
[null,null,"擁壁は材料や表面処理の工夫、前面緑化等により周辺との調和を図る","□はい　□いいえ　■該当なし",4]
[null,null,"敷地内の樹林、樹木、河川、水辺等は極力保全し、活用に努める","□はい　□いいえ　■該当なし",4]
[{"$f":"一般・市街地!A62","v":"土石の採取及び鉱物の掘採"},null,"周辺から目立たないよう採取の位置・工法を工夫し、敷地周囲の緑化等に努める","□はい　□いいえ　■該当なし",4]
[null,null,"採取後、自然植生と調和した緑化で修景する","□はい　□いいえ　■該当なし",4]
[{"$f":"一般・市街地!A64","v":"屋外における物件の堆積"},null,"高さをできるだけ低くし、整然と、威圧感の無いよう堆積する","□はい　□いいえ　■該当なし",4]
[null,null,"道路等から見えにくいよう遮蔽（植栽、木塀等、周辺景観と調和するもので遮蔽）","□はい　□いいえ　■該当なし",4]
[{"$f":"一般・市街地!A66","v":"木竹の伐採\n【河岸段丘】"},null,"【段丘】段丘林の連続性が失われる伐採は避ける","□はい　□いいえ　■該当なし",4]
[null,null,"【段丘】伐採する場合は既存樹木残置や新たな植栽等、法面の緑化に配慮","□はい　□いいえ　■該当なし",4]

{"sheet":"一般・山地森林","index":2,"n_rows":68,"n_cols":9,"rows_kept":68,"cut":false,"hidden":false,"merged":[[32,5,40,5],[66,0,67,1],[42,1,49,1],[51,0,58,0],[51,1,52,1],[54,1,55,1],[56,1,58,1],[42,0,45,0],[46,0,50,0],[50,5,58,6],[1,0,1,3],[59,0,61,1],[62,0,63,1],[64,0,65,1],[2,6,2,7],[35,4,40,4],[2,0,2,1],[3,1,11,1],[12,1,18,1],[19,1,28,1],[29,1,31,1],[32,1,41,1],[35,3,40,3],[7,0,41,0],[3,0,6,0]]}
[null,null,"地域区分：",null,null,{"$f":"HYPERLINK(\"#空!F6\",\"　●戻る　\")","v":"　●戻る　"}]
["景観形成基準チェックシート（一般地域：山地・森林）",null,null,null,"↓キーボードで直接打込めます"]
["行為制限事項",null,"山　地　森　林","チェック欄","入力欄",null,"入力欄凡例"]
[{"$f":"一般・市街地!A4","v":"建 築 物\n工 作 物\nの建設\n外観変更"},{"$f":"一般・市街地!B4","v":"配　　置"},"道路からできるだけ後退し、既存林を保存するなど配慮する",{"$f":"VLOOKUP(E4,$G$4:$I$7,3,TRUE)","v":"□はい　□いいえ　□該当なし"},1,null,1,"□空欄","□はい　□いいえ　□該当なし"]
[null,null,"道路側後退１０m以上（大規模行為）","□はい　□いいえ　■該当なし",4,null,2,"■はい","■はい　□いいえ　□該当なし"]
[null,null,"隣接境界からの離隔確保","□はい　□いいえ　□該当なし",1,null,3,"■いいえ","□はい　■いいえ　□該当なし"]
[null,null,"既存樹木・水辺を生かす","□はい　□いいえ　□該当なし",1,null,4,"■該当なし","□はい　□いいえ　■該当なし"]
[{"$f":"一般・市街地!A8","v":"（建物など）"},null,"地形の高低差を生かす","□はい　□いいえ　□該当なし",1]
[null,null,"稜線・斜面上部へ配置しない","□はい　□いいえ　□該当なし",1]
[null,null,"電柱・鉄塔は目立たないよう配置","□はい　□いいえ　□該当なし",1]
[null,null,"段丘崖からの離隔確保（段丘上端）","□はい　□いいえ　□該当なし",1]
[null,null,"【沿道】道路側後退５m以上（大規模行為）","□はい　□いいえ　■該当なし",4,{"$f":"HYPERLINK(\"#西箕輪→!L21\",\"●軸について\")","v":"●軸について"}]
[null,{"$f":"一般・市街地!B11","v":"規　　模"},"山岳・段丘眺望等、周囲からの見え方に配慮した規模・高さ","□はい　□いいえ　□該当なし",1]
[null,null,"周辺基調景観から突出しない規模・高さ","□はい　□いいえ　□該当なし",1]
[null,null,"建築物等と敷地のつり合い配慮","□はい　□いいえ　□該当なし",1]
[null,null,"周辺樹木を超えない高さ","□はい　□いいえ　□該当なし",1]
[null,null,"原則高さ１８m以下（工業団地３１m以下）","□はい　□いいえ　□該当なし",1]
[null,null,"【沿道】空地を確保し、圧迫感を避ける（高層の場合）","□はい　□いいえ　■該当なし",4]
[null,null,"【河川】河川の見通しを妨げない規模・高さ","□はい　□いいえ　■該当なし",4,{"$f":"HYPERLINK(\"#西箕輪→!L29\",\"●軸について\")","v":"●軸について"}]
[null,{"$f":"一般・市街地!B18","v":"形態意匠"},"適度な軒の出のある勾配屋根（スカイライン、周辺との調和）","□はい　□いいえ　□該当なし",1]
[null,null,"伝統様式を取り入れた意匠（伝統的建築物の多い地域）","□はい　□いいえ　□該当なし",1]
[null,null,"大規模平滑面を避け、壁面処理に配慮","□はい　□いいえ　□該当なし",1]
[null,null,"屋根・壁・開口部等の意匠工夫で圧迫感・威圧感を軽減（規模が大きい場合）","□はい　□いいえ　□該当なし",1]
[null,null,"道路・河川・鉄道に面する壁面等のデザイン配慮","□はい　□いいえ　□該当なし",1]
[null,null,"屋上設備の壁・ルーバー設置","□はい　□いいえ　□該当なし",1]
[null,null,"屋外階段や露出配管等の付帯物や広告物のデザイン配慮、建築物本体との調和","□はい　□いいえ　□該当なし",1]
[null,null,"【沿道】道路沿いからの見え方に配慮し上部や正面デザイン工夫、連続性形成","□はい　□いいえ　■該当なし",4]
[null,null,"【河川】河川沿いからの見え方に配慮し上部や正面デザイン工夫、連続性形成","□はい　□いいえ　■該当なし",4]
[null,null,"【段丘】段丘林の連続性、佇まいを阻害しない、外観に十分配慮","□はい　□いいえ　■該当なし",4,{"$f":"HYPERLINK(\"#西箕輪→!L31\",\"●軸について\")","v":"●軸について"}]
[null,{"$f":"一般・市街地!B29","v":"材　　料"},"耐久性に優れた材料を使用","□はい　□いいえ　□該当なし",1]
[null,null,"反射光材の使用を避ける、使用時は着色等による反射軽減を図る","□はい　□いいえ　□該当なし",1]
[null,null,"地場産材、地域を特徴づける素材、自然素材を活用","□はい　□いいえ　□該当なし",1]
[null,{"$f":"一般・市街地!B32","v":"色 彩 等"},"けばけばしい色彩とせず、落ち着いた色彩を基調、周辺の自然景観と調和した色調","□はい　□いいえ　□該当なし",1,"着色した立面図等に\nマンセル値を\n記載してください。"]
[null,null,"使用色数を少なくする","□はい　□いいえ　□該当なし",1]
[null,null,"照明は落ち着き・温かみを、ネオンサイン、点滅、光源が動くものの使用を避ける","□はい　□いいえ　□該当なし",1]
[null,null,"（屋根）R、YR、Y、GYは彩度７以下　その他は彩度４以下　明度は周辺と調和",{"$f":"VLOOKUP(E36,$G$4:$I$7,3,TRUE)","v":"□はい　□いいえ　□該当なし"},1]
[null,null,"（外壁）R、YR、Y、GYは彩度７以下　その他は彩度４以下　明度は周辺と調和",{"$error":"#N/A"}]
[null,null,"＜適用除外＞外壁各面の見付面積の１／５以内のアクセント色で、支障ないもの",{"$error":"#N/A"}]
[null,null,"＜適用除外＞石・木材・土・レンガ・ガラス等、素材本来の色彩のもの",{"$error":"#N/A"}]
[null,null,"＜適用除外＞地域の伝統継承色彩のもの",{"$error":"#N/A"}]
[null,null,"＜適用除外＞その他法令義務のもの",{"$error":"#N/A"}]
[null,null,"【段丘】段丘林等、周囲の自然に馴染む色彩","□はい　□いいえ　■該当なし",4]
[{"$f":"一般・市街地!A42","v":"建 築 物\n工 作 物\nの建設\n外観変更"},{"$f":"一般・市街地!B42","v":"敷地の緑化"},"既存樹木を残し、伐採時は周辺の山林との調和に配慮","□はい　□いいえ　□該当なし",1]
[null,null,"外部から見える敷地境界は樹木活用、門・塀は生垣、壁緑化等の意匠工夫配慮","□はい　□いいえ　□該当なし",1]
[null,null,"比較的大規模な建築物等は、建物周囲の高木配置等で威圧感・圧迫感軽減に努める","□はい　□いいえ　□該当なし",1]
[null,null,"駐車・駐輪場は道路から直接見えにくいよう周囲や場内の植栽等、緑化に努める","□はい　□いいえ　□該当なし",1]
[{"$f":"一般・市街地!A46","v":"（外構など）"},null,"樹種は地域に根付いたものを基本とし、周辺樹林等と調和するもの","□はい　□いいえ　□該当なし",1]
[null,null,"段丘崖上端側の緑化を行い、段丘林の連続性、佇まいを阻害しないよう配慮","□はい　□いいえ　□該当なし",1]
[null,null,"【河川】河川沿いの憩い・潤い景観が続くよう、植栽、鉢植等の緑化に努める","□はい　□いいえ　■該当なし",4]
[null,null,"【段丘】段丘林の連続性、佇まいを阻害しないよう、周囲を緑化","□はい　□いいえ　■該当なし",4]
[null,{"$f":"一般・市街地!B50","v":"自動販売機"},"外観は落ち着いた色調、複数台設置時は囲いで覆う等の工夫","□はい　□いいえ　■該当なし",4,"自販機、看板、広告等を\n設置、表示等する場合は\n内容確認してください。\nあわせて\n伊那市屋外広告物条例の\n手続きを確認ください。"]
[{"$f":"一般・市街地!A51","v":"特定外観意匠に\n関する付加基準\n（看板、広告など）"},{"$f":"一般・市街地!B51","v":"配　　置"},"道路等からの後退に努める","□はい　□いいえ　■該当なし",4]
[null,null,"河川等の水辺や山なみの眺望を阻害しないよう努める","□はい　□いいえ　■該当なし",4]
[null,{"$f":"一般・市街地!B53","v":"規模、形態・意匠"},"周辺の基調景観に調和する形態意匠とし、必要最小限の規模","□はい　□いいえ　■該当なし",4]
[null,{"$f":"一般・市街地!B54","v":"材　　料"},"周辺景観と調和し、高耐久性で退色・はく離の生じにくいもの","□はい　□いいえ　■該当なし",4]
[null,null,"反射光材の使用を避ける、使用時は着色等による反射軽減を図る","□はい　□いいえ　■該当なし",4]
[null,{"$f":"一般・市街地!B56","v":"色 彩 等"},"けばけばしい色彩とせず、落ち着いた色彩を基調、周辺の自然景観と調和した色調","□はい　□いいえ　■該当なし",4]
[null,null,"使用色数を少なくする","□はい　□いいえ　■該当なし",4]
[null,null,"光源が動くものの使用を避ける","□はい　□いいえ　■該当なし",4]
[{"$f":"一般・市街地!A59","v":"土 地 の 形 質 の 変 更\n（1,000㎡＜ または H＞2M）"},null,"大規模な法面、擁壁を生じないようにし、緩やかな勾配、緑化に努める","□はい　□いいえ　■該当なし",4]
[null,null,"擁壁は材料や表面処理の工夫、前面緑化等により周辺との調和を図る","□はい　□いいえ　■該当なし",4]
[null,null,"敷地内の樹林、樹木、河川、水辺等は極力保全し、活用に努める","□はい　□いいえ　■該当なし",4]
[{"$f":"一般・市街地!A62","v":"土石の採取及び鉱物の掘採"},null,"周辺から目立たないよう採取の位置・工法を工夫し、敷地周囲の緑化等に努める","□はい　□いいえ　■該当なし",4]
[null,null,"採取後、自然植生と調和した緑化で修景する","□はい　□いいえ　■該当なし",4]
[{"$f":"一般・市街地!A64","v":"屋外における物件の堆積"},null,"高さをできるだけ低くし、整然と、威圧感の無いよう堆積する","□はい　□いいえ　■該当なし",4]
[null,null,"道路等から見えにくいよう遮蔽（植栽、木塀等、周辺景観と調和するもので遮蔽）","□はい　□いいえ　■該当なし",4]
[{"$f":"一般・市街地!A66","v":"木竹の伐採\n【河岸段丘】"},null,"【段丘】段丘林の連続性が失われる伐採は避ける","□はい　□いいえ　■該当なし",4]
[null,null,"【段丘】伐採する場合は既存樹木残置や新たな植栽等、法面の緑化に配慮",{"$f":"VLOOKUP(E68,$G$4:$I$7,3,TRUE)","v":"□はい　□いいえ　■該当なし"},4]

{"sheet":"←一般地域","index":3,"n_rows":22,"n_cols":24,"rows_kept":22,"cut":false,"hidden":false,"merged":[[18,10,18,11],[21,10,21,11],[22,10,22,11]]}
[null,null,null,null,null,null,null,null,null,null,null,null,null,null,null,null,null,null,null,null,null,null,null,{"$f":"HYPERLINK(\"#空!F6\",\"　●戻る　\")","v":"　●戻る　"}]
[]
["伊那市景観計画 地域区域図"]
[]
[]
[null,null,null,null,null,null,null,4]
[]
[]
[]
[]
[]
[]
[]
[]
[]
[]
[]
[]
[null,null,null,null,null,null,null,null,null,null,"北"]
[null,null,null,null,null,null,null,null,null,null,"←","→"]
[null,null,null,null,null,null,null,null,null,null,"竜西","竜東"]
[null,null,null,null,null,null,null,null,null,null,"南"]

{"sheet":"空","index":4,"n_rows":31,"n_cols":11,"rows_kept":31,"cut":false,"hidden":false,"merged":[[5,5,6,6],[7,5,8,6],[7,7,8,9]]}
[]
[{"$f":"NOW()","v":"2023-10-04T18:05:22.260"},null,null,null,null,"※ 提出前に 地域区分 をご確認ください",null,null,null,null,"※届出者名(省略可)"]
[{"$f":"TEXT(A2,\"yyyymmdd hhmmss\")&\" \"&K3&\"-07チェックシート\"&F8","v":"20231004 180522 伊那 太郎-07チェックシート【一般・田　園(＋軸)】"},null,null,null,null,null,null,null,null,null,"伊那 太郎"]
[]
["番号","地域区分",null,null,null,"❷↓左表の、該当の番号を選択",null,null,null,null,"❶↓対象場所の地域区分図を確認！"]
[1,"一般・市街地(＋軸)",null,1,null,2,null,{"$f":"VLOOKUP(F6,A6:D11,4,TRUE)","v":2},null,"☜",{"$f":"HYPERLINK(\"#←一般地域!W1\",\"●地域区分図\")","v":"●地域区分図"}]
[2,"一般・田　園(＋軸)",null,2,null,null,null,null,null,null,{"$f":"HYPERLINK(\"#西箕輪→!L1\",\"●軸の考え方\")","v":"●軸の考え方"}]
[3,"一般・山地森林(＋軸)",null,3,null,{"$f":"\"【\"&VLOOKUP(F6,A6:D11,2,TRUE)&\"】\"","v":"【一般・田　園(＋軸)】"},null,"←❸ 正しいことを確認"]
[4,"西箕輪・田　園",null,7,null,null,null,null,null,null,{"$f":"IF(F6=1,\"❹↓該当のチェックシートへジャンプ＋入力\",\"\")","v":""}]
[5,"西箕輪・沿　道",null,8,null,null,null,null,null,"☞",{"$f":"IF(F6=1,HYPERLINK(\"#一般・市街地!E1\",\"◀【一般・市街地】のチェックシートはこちら\"),\"\")","v":""}]
[6,"西箕輪・山地高原",null,9,null,"チェックシート入力後",null,null,null,"【　】をクリック",{"$f":"IF(F6=2,\"❹↓該当のチェックシートへジャンプ＋入力\",\"\")","v":"❹↓該当のチェックシートへジャンプ＋入力"}]
["地域区分表",null,null,null,null,"❺↓ボタンをクリック",null,null,null,null,{"$f":"IF(F6=2,HYPERLINK(\"#一般・田園!E1\",\"◀【一般・田園】のチェックシートはこちら\"),\"\")","v":"◀【一般・田園】のチェックシートはこちら"}]
[null,null,null,null,null,null,null,null,null,null,{"$f":"IF(F6=3,\"❹↓該当のチェックシートへジャンプ＋入力\",\"\")","v":""}]
["※　西箕輪＝景観形成重点地区",null,null,null,null,null,null,"☜",null,null,{"$f":"IF(F6=3,HYPERLINK(\"#一般・山地森林!E1\",\"◀【一般・山地森林】のチェックシートはこちら\"),\"\")","v":""}]
["　　  一　般＝西箕輪以外の地区",null,null,null,null,null,null,null,null,null,{"$f":"IF(F6=4,\"❹↓該当のチェックシートへジャンプ＋入力\",\"\")","v":""}]
["　　市街地 ＝ 用途地域内 + 西春近の一部",null,null,null,null,null,null,null,null,null,{"$f":"IF(F6=4,HYPERLINK(\"#西箕輪・田園!E1\",\"【西箕輪・田園】のチェックシートはこちら▶\"),\"\")","v":""}]
[null,null,null,null,null,"❻　このエクセルファイルの保存場所にPDFができます。",null,null,null,null,{"$f":"IF(F6=5,\"❹↓該当のチェックシートへジャンプ＋入力\",\"\")","v":""}]
[null,null,null,null,null,null,null,null,null,null,{"$f":"IF(F6=5,HYPERLINK(\"#西箕輪・沿道!E1\",\"【西箕輪・沿道】のチェックシートはこちら▶\"),\"\")","v":""}]
[null,null,null,null,null,"❼　PDFデータをオンライン申請に添付ください。",null,null,null,null,{"$f":"IF(F6=6,\"❹↓該当のチェックシートへジャンプ＋入力\",\"\")","v":""}]
[null,null,null,null,null,null,null,null,null,null,{"$f":"IF(F6=6,HYPERLINK(\"#西箕輪・山地高原!E1\",\"【西箕輪・山地高原】のチェックシートはこちら▶\"),\"\")","v":""}]
[null,null,null,null,null,"※　オンライン手続きはこちら。↓"]
[null,null,null,null,null,"https://apply.e-tumo.jp/city-ina-nagano-u/offer/offerList_detail?tempSeq=9474"]
[]
[null,null,null,null,null,"または"]
[null,null,null,null,null,"① 【　伊那市・建築　】　で検索　🔎　"]
[null,null,null,null,null,null,"↓"]
[null,null,null,null,null,"② 建築物等の建築確認申請（建築物・工作物）"]
[null,null,null,null,null,null,"↓"]
[null,null,null,null,null,"③ 用途地域など調査に関する問い合わせ（外部サイト）へ"]
[null,null,null,null,null,null,"↓"]
[null,null,null,null,null,"④ 「○計景観計画区域内行為の届出」　から手続きができます。"]

{"sheet":"西箕輪→","index":5,"n_rows":1,"n_cols":13,"rows_kept":1,"cut":false,"hidden":false,"merged":[]}
[null,null,null,null,null,null,null,null,null,null,null,null,{"$f":"HYPERLINK(\"#空!F6\",\"　●戻る　\")","v":"　●戻る　"}]

{"sheet":"西箕輪・田園","index":6,"n_rows":64,"n_cols":9,"rows_kept":64,"cut":false,"hidden":false,"merged":[[62,0,63,1],[30,1,35,1],[36,1,56,1],[36,0,56,0],[2,6,2,7],[24,4,29,4],[36,4,53,4],[36,3,53,3],[2,0,2,1],[3,1,7,1],[8,1,10,1],[11,1,17,1],[18,1,20,1],[21,1,29,1],[24,3,29,3],[3,0,6,0],[36,5,56,6],[21,5,29,5],[1,0,1,3],[57,0,59,1],[60,0,61,1],[7,0,29,0],[30,0,35,0]]}
[null,null,"　　　地域区分：",null,null,{"$f":"HYPERLINK(\"#空!F6\",\"　●戻る　\")","v":"　●戻る　"}]
["景観形成基準チェックシート（西箕輪景観形成重点地区：田園）",null,null,null,"↓キーボードで直接打込めます"]
["行為制限事項",null,"田　園","チェック欄","入力欄",null,"入力欄凡例"]
[{"$f":"一般・市街地!A4","v":"建 築 物\n工 作 物\nの建設\n外観変更"},{"$f":"一般・市街地!B4","v":"配　　置"},"道路からできるだけ後退し空地を確保",{"$f":"VLOOKUP(E4,$G$4:$I$7,3,TRUE)","v":"□はい　□いいえ　□該当なし"},1,null,1,"□空欄","□はい　□いいえ　□該当なし"]
[null,null,"隣接境界からの離隔確保","□はい　□いいえ　□該当なし",1,null,2,"■はい","■はい　□いいえ　□該当なし"]
[null,null,"既存樹木・水辺を生かす","□はい　□いいえ　□該当なし",1,null,3,"■いいえ","□はい　■いいえ　□該当なし"]
[null,null,"地域のランドマークやスカイライン等への眺望を阻害しない","□はい　□いいえ　□該当なし",1,null,4,"■該当なし","□はい　□いいえ　■該当なし"]
[{"$f":"一般・市街地!A8","v":"（建物など）"},null,"電柱・鉄塔は目立たないよう配置","□はい　□いいえ　□該当なし",1]
[null,{"$f":"一般・市街地!B11","v":"規　　模"},"周辺基調景観から突出しない規模・高さ","□はい　□いいえ　□該当なし",1]
[null,null,"極力抑えた規模","□はい　□いいえ　□該当なし",1]
[null,null,"原則高さ１３m以下","□はい　□いいえ　□該当なし",1]
[null,{"$f":"一般・市街地!B18","v":"形態意匠"},"適度な軒の出のある勾配屋根（スカイライン、周辺との調和）","□はい　□いいえ　□該当なし",1]
[null,null,"背景のスカイライン、田園、建築物形態、文化遺産との調和","□はい　□いいえ　□該当なし",1]
[null,null,"大規模平滑面を避け、壁面処理に配慮","□はい　□いいえ　□該当なし",1]
[null,null,"屋根・壁・開口部等の意匠工夫で圧迫感・威圧感を軽減（規模が大きい場合）","□はい　□いいえ　□該当なし",1]
[null,null,"道路・河川に面する壁面等のデザイン配慮","□はい　□いいえ　□該当なし",1]
[null,null,"屋上設備の壁・ルーバー設置","□はい　□いいえ　□該当なし",1]
[null,null,"屋外階段や露出配管等の付帯物や広告物のデザイン配慮、建築物本体との調和","□はい　□いいえ　□該当なし",1]
[null,{"$f":"一般・市街地!B29","v":"材　　料"},"耐久性に優れた材料を使用","□はい　□いいえ　□該当なし",1]
[null,null,"反射光材の壁面大部分への使用を避ける","□はい　□いいえ　□該当なし",1]
[null,null,"地域を特徴づける素材を活用","□はい　□いいえ　□該当なし",1]
[null,{"$f":"一般・市街地!B32","v":"色 彩 等"},"自然の色彩を基調、周辺の田園・集落と調和した色調","□はい　□いいえ　□該当なし",1,"着色した立面図等に\nマンセル値を\n記載してください。"]
[null,null,"使用色数を少なくする","□はい　□いいえ　□該当なし",1]
[null,null,"ネオンサイン、点滅、光源で動きのあるものは設置しない、建築物等をライトアップしない","□はい　□いいえ　□該当なし",1]
[null,null,"（屋根）R、YR、Y、GYは彩度７以下　その他は彩度４以下　明度は周辺と調和","□はい　□いいえ　□該当なし",1]
[null,null,"（外壁）R、YR、Y、GYは彩度７以下　その他は彩度４以下　明度は周辺と調和",{"$error":"#N/A"}]
[null,null,"＜適用除外＞外壁各面の見付面積の１／５以内のアクセント色で、支障ないもの",{"$error":"#N/A"}]
[null,null,"＜適用除外＞石・木材・土・レンガ・ガラス等、素材本来の色彩のもの",{"$error":"#N/A"}]
[null,null,"＜適用除外＞地域の伝統継承色彩のもの",{"$error":"#N/A"}]
[null,null,"＜適用除外＞その他法令義務のもの",{"$error":"#N/A"}]
[{"$f":"一般・市街地!A46","v":"（外構など）"},{"$f":"一般・市街地!B42","v":"敷地の緑化"},"敷地境界には樹木等を活用し、門、塀等による場合は、周辺の景観と調和","□はい　□いいえ　□該当なし",1]
[null,null,"比較的大規模な建築物等は、建物周囲の緑化等で威圧感・圧迫感軽減に努める","□はい　□いいえ　□該当なし",1]
[null,null,"駐車・駐輪場・焼却炉等は道路から直接見えにくいよう周囲や場内の植栽等、緑化に努める","□はい　□いいえ　□該当なし",1]
[null,null,"使用する樹種は、周辺の樹林等、周辺の景観と調和すること","□はい　□いいえ　□該当なし",1]
[null,null,"河川等がある場合は、樹木を活用し、水辺の景観に配慮","□はい　□いいえ　□該当なし",1]
[null,null,"敷地内の樹木は、残すように努める",{"$f":"VLOOKUP(E36,$G$4:$I$7,3,TRUE)","v":"□はい　□いいえ　□該当なし"},1]
[{"$f":"一般・市街地!A42","v":"建 築 物\n工 作 物\nの建設\n外観変更"},"特定外観意匠に関する付加基準\n（看板、広告などがある場合）","次に掲げる広告物以外は設置しない","□はい　□いいえ　■該当なし",4,"自販機、看板、広告等を\n設置、表示等する場合は\n内容確認してください。\nあわせて\n伊那市屋外広告物条例の\n手続きを確認ください。"]
[null,null,"①公職選挙法その他の法令の規定に基づく選挙運動のために表示し、又は設置するもの",{"$error":"#N/A"}]
[null,null,"②法令の規定により表示又は設置を義務づけられたもの",{"$error":"#N/A"}]
[null,null,"③国又は地方公共団体が表示し、又は設置するもので、公益上必要と認められるもの",{"$error":"#N/A"}]
[null,null,"④自己の氏名、事業又は営業に関し、自己の居住、事務所、営業所等に表示するもので",{"$error":"#N/A"}]
[null,null,"表示面積の合計１０㎡以下のもの",{"$error":"#N/A"}]
[null,null,"⑤祭典その他年中行事等のために慣例上使用するもの",{"$error":"#N/A"}]
[null,null,"⑥一時的又は仮設的なもので表示期間が３０日を越えないもの",{"$error":"#N/A"}]
[null,null,"⑦　①から⑥までに掲げるもののほか、営利を目的としないもので次に掲げるもの",{"$error":"#N/A"}]
[null,null,"・交通安全、公衆衛生、水火災警報その他公益に関する宣伝告知のためにするもの",{"$error":"#N/A"}]
[null,null,"・会合その他催物に関するもの",{"$error":"#N/A"}]
[null,null,"・はり紙、はり札、立看板及び広告幕類",{"$error":"#N/A"}]
[null,null,"・報道機関が設置する時事速報等を掲出する物件",{"$error":"#N/A"}]
[null,null,"⑧事業所や施設等への案内を目的としたもので、次の要件をすべて満たすもの",{"$error":"#N/A"}]
[null,null,"・表示面の地盤面からの高さが3.5mまでのもの",{"$error":"#N/A"}]
[null,null,"・表示面積の合計が4㎡未満のもの",{"$error":"#N/A"}]
[null,null,"・基調色は、白色、銀色、青系色、茶系色の組み合わせ及び木の地肌のもの",{"$error":"#N/A"}]
[null,null,"・支柱の色は、黒色、白色、グレー系色、焦げ茶色のもの",{"$error":"#N/A"}]
[null,null,"④及び⑧にあっては、落ち着いた色彩を基調とする","□はい　□いいえ　■該当なし",4]
[null,null,"周辺の景観と調和した色調・意匠とする","□はい　□いいえ　■該当なし",4]
[null,null,"道路から1m以上かつ交差点から10m以上離す","□はい　□いいえ　■該当なし",4]
["土 地 の 形 質 の 変 更\n（300㎡＜ または H＞2M）",null,"大規模な法面、擁壁を生じないようにし、緩やかな勾配、緑化に努める","□はい　□いいえ　■該当なし",4]
[null,null,"擁壁は材料や表面処理の工夫、前面緑化等により周辺との調和を図る","□はい　□いいえ　■該当なし",4]
[null,null,"敷地内の樹林、樹木、河川、水辺等は極力保全し、活用に努める","□はい　□いいえ　■該当なし",4]
[{"$f":"一般・市街地!A62","v":"土石の採取及び鉱物の掘採"},null,"周辺から目立たないよう採取の位置・工法を工夫し、敷地周辺の緑化等に努める","□はい　□いいえ　■該当なし",4]
[null,null,"採取後、自然植生と調和した緑化で修景する","□はい　□いいえ　■該当なし",4]
[{"$f":"一般・市街地!A64","v":"屋外における物件の堆積"},null,"高さをできるだけ低くし、整然と、威圧感の無いよう堆積する","□はい　□いいえ　■該当なし",4]
[null,null,"道路等から見えにくいよう遮蔽（植栽、木塀等、周辺景観と調和するもので遮蔽）","□はい　□いいえ　■該当なし",4]

{"sheet":"西箕輪・沿道","index":7,"n_rows":66,"n_cols":9,"rows_kept":66,"cut":false,"hidden":false,"merged":[[2,6,2,7],[25,4,30,4],[38,4,55,4],[38,3,55,3],[2,0,2,1],[3,1,8,1],[9,1,11,1],[12,1,18,1],[19,1,21,1],[22,1,30,1],[25,3,30,3],[3,0,6,0],[7,0,30,0],[38,5,58,6],[22,5,30,5],[1,0,1,3],[59,0,61,1],[62,0,63,1],[64,0,65,1],[31,1,37,1],[38,1,58,1],[31,0,37,0],[38,0,58,0]]}
[null,null,"　　　地域区分：",null,null,{"$f":"HYPERLINK(\"#空!F6\",\"　●戻る　\")","v":"　●戻る　"}]
["景観形成基準チェックシート（西箕輪景観形成重点地区：沿道）",null,null,null,"↓キーボードで直接打込めます"]
["行為制限事項",null,"沿　道","チェック欄","入力欄",null,"入力欄凡例"]
[{"$f":"西箕輪・田園!A4","v":"建 築 物\n工 作 物\nの建設\n外観変更"},{"$f":"一般・市街地!B4","v":"配　　置"},"道路からできるだけ後退し空地を確保",{"$f":"VLOOKUP(E4,$G$4:$I$7,3,TRUE)","v":"□はい　□いいえ　□該当なし"},1,null,1,"□空欄","□はい　□いいえ　□該当なし"]
[null,null,"道路側後退５m以上（大規模行為）","□はい　□いいえ　■該当なし",4,null,2,"■はい","■はい　□いいえ　□該当なし"]
[null,null,"隣接境界からの離隔確保","□はい　□いいえ　□該当なし",1,null,3,"■いいえ","□はい　■いいえ　□該当なし"]
[null,null,"既存樹木・水辺を生かす","□はい　□いいえ　□該当なし",1,null,4,"■該当なし","□はい　□いいえ　■該当なし"]
[{"$f":"西箕輪・田園!A8","v":"（建物など）"},null,"地域のランドマークやスカイライン等への眺望を阻害しない","□はい　□いいえ　□該当なし",1]
[null,null,"電柱・鉄塔は目立たないよう配置","□はい　□いいえ　□該当なし",1,null,{"$f":"HYPERLINK(\"#西箕輪→!L21\",\"●軸について\")","v":"●軸について"}]
[null,{"$f":"一般・市街地!B11","v":"規　　模"},"周辺基調景観から突出しない規模・高さ","□はい　□いいえ　□該当なし",1]
[null,null,"圧迫感を生じさせない空地確保","□はい　□いいえ　□該当なし",1]
[null,null,"原則高さ１３m以下","□はい　□いいえ　□該当なし",1]
[null,{"$f":"一般・市街地!B18","v":"形態意匠"},"上部及び正面デザインの工夫","□はい　□いいえ　□該当なし",1]
[null,null,"背景のスカイライン、建築物形態、文化遺産との調和","□はい　□いいえ　□該当なし",1]
[null,null,"大規模平滑面を避け、壁面処理に配慮","□はい　□いいえ　□該当なし",1]
[null,null,"屋根・壁・開口部等の意匠工夫で圧迫感・威圧感を軽減（規模が大きい場合）","□はい　□いいえ　□該当なし",1]
[null,null,"道路・河川に面する壁面等のデザイン配慮","□はい　□いいえ　□該当なし",1]
[null,null,"屋上設備の壁・ルーバー設置","□はい　□いいえ　□該当なし",1]
[null,null,"屋外階段や露出配管等の付帯物や広告物のデザイン配慮、建築物本体との調和","□はい　□いいえ　□該当なし",1]
[null,{"$f":"一般・市街地!B29","v":"材　　料"},"耐久性に優れた材料を使用","□はい　□いいえ　□該当なし",1]
[null,null,"反射光材の壁面大部分への使用を避ける","□はい　□いいえ　□該当なし",1]
[null,null,"地域を特徴づける素材を活用","□はい　□いいえ　□該当なし",1]
[null,{"$f":"一般・市街地!B32","v":"色 彩 等"},"自然の色彩を基調、周辺の景観・建築物等と調和した色調","□はい　□いいえ　□該当なし",1,"着色した立面図等に\nマンセル値を\n記載してください。"]
[null,null,"使用色数を少なくする","□はい　□いいえ　□該当なし",1]
[null,null,"ネオンサイン、点滅、光源で動きのあるものは設置しない、建築物等をライトアップしない","□はい　□いいえ　□該当なし",1]
[null,null,"（屋根）R、YR、Y、GYは彩度７以下　その他は彩度４以下　明度は周辺と調和","□はい　□いいえ　□該当なし",1]
[null,null,"（外壁）R、YR、Y、GYは彩度７以下　その他は彩度４以下　明度は周辺と調和",{"$error":"#N/A"}]
[null,null,"＜適用除外＞外壁各面の見付面積の１／５以内のアクセント色で、支障ないもの",{"$error":"#N/A"}]
[null,null,"＜適用除外＞石・木材・土・レンガ・ガラス等、素材本来の色彩のもの",{"$error":"#N/A"}]
[null,null,"＜適用除外＞地域の伝統継承色彩のもの",{"$error":"#N/A"}]
[null,null,"＜適用除外＞その他法令義務のもの",{"$error":"#N/A"}]
[{"$f":"西箕輪・田園!A31","v":"（外構など）"},{"$f":"一般・市街地!B42","v":"敷地の緑化"},"敷地境界には樹木等を活用し、門、塀等による場合は、周辺の景観と調和","□はい　□いいえ　□該当なし",1]
[null,null,"比較的大規模な建築物等は、建物周囲の緑化等で威圧感・圧迫感軽減に努める","□はい　□いいえ　□該当なし",1]
[null,null,"駐車・駐輪場・焼却炉等は道路から直接見えにくいよう周囲や場内の植栽等、緑化に努める","□はい　□いいえ　□該当なし",1]
[null,null,"使用する樹種は、地域の風土にあったもの","□はい　□いいえ　□該当なし",1]
[null,null,"道路等の公共空間や周囲の緑化との連続性に配慮",{"$f":"VLOOKUP(E36,$G$4:$I$7,3,TRUE)","v":"□はい　□いいえ　□該当なし"},1]
[null,null,"河川等がある場合は、樹木を活用し、水辺の景観に配慮","□はい　□いいえ　□該当なし",1]
[null,null,"敷地内の樹木は、残すように努める","□はい　□いいえ　□該当なし",1]
[{"$f":"西箕輪・田園!A37","v":"建 築 物\n工 作 物\nの建設\n外観変更"},{"$f":"西箕輪・田園!B37","v":"特定外観意匠に関する付加基準\n（看板、広告などがある場合）"},"次に掲げる広告物以外は設置しない","□はい　□いいえ　■該当なし",4,"自販機、看板、広告等を\n設置、表示等する場合は\n内容確認してください。\nあわせて\n伊那市屋外広告物条例の\n手続きを確認ください。"]
[null,null,"①公職選挙法その他の法令の規定に基づく選挙運動のために表示し、又は設置するもの",{"$error":"#N/A"}]
[null,null,"②法令の規定により表示又は設置を義務づけられたもの",{"$error":"#N/A"}]
[null,null,"③国又は地方公共団体が表示し、又は設置するもので、公益上必要と認められるもの",{"$error":"#N/A"}]
[null,null,"④自己の氏名、事業又は営業に関し、自己の居住、事務所、営業所等に表示するもので",{"$error":"#N/A"}]
[null,null,"表示面積の合計１０㎡以下のもの",{"$error":"#N/A"}]
[null,null,"⑤祭典その他年中行事等のために慣例上使用するもの",{"$error":"#N/A"}]
[null,null,"⑥一時的又は仮設的なもので表示期間が３０日を越えないもの",{"$error":"#N/A"}]
[null,null,"⑦　①から⑥までに掲げるもののほか、営利を目的としないもので次に掲げるもの",{"$error":"#N/A"}]
[null,null,"・交通安全、公衆衛生、水火災警報その他公益に関する宣伝告知のためにするもの",{"$error":"#N/A"}]
[null,null,"・会合その他催物に関するもの",{"$error":"#N/A"}]
[null,null,"・はり紙、はり札、立看板及び広告幕類",{"$error":"#N/A"}]
[null,null,"・報道機関が設置する時事速報等を掲出する物件",{"$error":"#N/A"}]
[null,null,"⑧事業所や施設等への案内を目的としたもので、次の要件をすべて満たすもの",{"$error":"#N/A"}]
[null,null,"・表示面の地盤面からの高さが3.5mまでのもの",{"$error":"#N/A"}]
[null,null,"・表示面積の合計が4㎡未満のもの",{"$error":"#N/A"}]
[null,null,"・基調色は、白色、銀色、青系色、茶系色の組み合わせ及び木の地肌のもの",{"$error":"#N/A"}]
[null,null,"・支柱の色は、黒色、白色、グレー系色、焦げ茶色のもの",{"$error":"#N/A"}]
[null,null,"④及び⑧にあっては、けばけばしい色彩とせず、できるだけ落ち着いた色彩を基調とする","□はい　□いいえ　■該当なし",4]
[null,null,"周辺の景観と調和した色調・意匠とする","□はい　□いいえ　■該当なし",4]
[null,null,"道路から1m以上かつ交差点から10m以上離す","□はい　□いいえ　■該当なし",4]
[{"$f":"西箕輪・田園!A58","v":"土 地 の 形 質 の 変 更\n（300㎡＜ または H＞2M）"},null,"大規模な法面、擁壁を生じないようにし、緩やかな勾配、緑化に努める","□はい　□いいえ　■該当なし",4]
[null,null,"擁壁は材料や表面処理の工夫、前面緑化等により周辺との調和を図る","□はい　□いいえ　■該当なし",4]
[null,null,"敷地内の樹林、樹木、河川、水辺等は極力保全し、活用に努める","□はい　□いいえ　■該当なし",4]
[{"$f":"一般・市街地!A62","v":"土石の採取及び鉱物の掘採"},null,"周辺から目立たないよう採取の位置・工法を工夫し、敷地周辺の緑化等に努める","□はい　□いいえ　■該当なし",4]
[null,null,"採取後、自然植生と調和した緑化で修景する","□はい　□いいえ　■該当なし",4]
[{"$f":"一般・市街地!A64","v":"屋外における物件の堆積"},null,"高さをできるだけ低くし、整然と、威圧感の無いよう堆積する","□はい　□いいえ　■該当なし",4]
[null,null,"道路等から見えにくいよう遮蔽（植栽、木塀等、周辺景観と調和するもので遮蔽）","□はい　□いいえ　■該当なし",4]

{"sheet":"西箕輪・山地高原","index":8,"n_rows":65,"n_cols":9,"rows_kept":65,"cut":false,"hidden":false,"merged":[[22,5,30,5],[3,0,6,0],[61,0,62,1],[63,0,64,1],[31,1,36,1],[37,1,57,1],[2,6,2,7],[37,4,54,4],[25,4,30,4],[37,3,54,3],[2,0,2,1],[3,1,9,1],[10,1,11,1],[12,1,18,1],[19,1,21,1],[22,1,30,1],[25,3,30,3],[37,5,57,6],[7,0,30,0],[31,0,36,0],[37,0,57,0],[1,0,1,3],[58,0,60,1]]}
[null,null,"地域区分：",null,null,{"$f":"HYPERLINK(\"#空!F6\",\"　●戻る　\")","v":"　●戻る　"}]
["景観形成基準チェックシート（西箕輪景観形成重点地区：山地・高原）",null,null,null,"↓キーボードで直接打込めます"]
["行為制限事項",null,"山 地・高 原","チェック欄","入力欄",null,"入力欄凡例"]
[{"$f":"一般・市街地!A4","v":"建 築 物\n工 作 物\nの建設\n外観変更"},{"$f":"一般・市街地!B4","v":"配　　置"},"道路からできるだけ後退し空地を確保",{"$f":"VLOOKUP(E4,$G$4:$I$7,3,TRUE)","v":"□はい　□いいえ　□該当なし"},1,null,1,"□空欄","□はい　□いいえ　□該当なし"]
[null,null,"道路側後退１０m以上（大規模行為）","□はい　□いいえ　■該当なし",4,null,2,"■はい","■はい　□いいえ　□該当なし"]
[null,null,"隣接境界からの離隔確保","□はい　□いいえ　□該当なし",1,null,3,"■いいえ","□はい　■いいえ　□該当なし"]
[null,null,"既存樹木・水辺を生かす","□はい　□いいえ　□該当なし",1,null,4,"■該当なし","□はい　□いいえ　■該当なし"]
[{"$f":"一般・市街地!A8","v":"（建物など）"},null,"地形の高低差を生かす","□はい　□いいえ　□該当なし",1]
[null,null,"稜線・斜面上部へ配置しない","□はい　□いいえ　□該当なし",1]
[null,null,"電柱・鉄塔は目立たないよう配置","□はい　□いいえ　□該当なし",1]
[null,{"$f":"一般・市街地!B11","v":"規　　模"},"周辺基調景観から突出しない規模・高さ","□はい　□いいえ　□該当なし",1]
[null,null,"原則高さ１３m以下","□はい　□いいえ　□該当なし",1]
[null,{"$f":"一般・市街地!B18","v":"形態意匠"},"適度な軒の出のある勾配屋根（スカイライン、周辺との調和）","□はい　□いいえ　□該当なし",1]
[null,null,"周囲の山なみと調和","□はい　□いいえ　□該当なし",1]
[null,null,"大規模平滑面を避け、壁面処理に配慮","□はい　□いいえ　□該当なし",1]
[null,null,"屋根・壁・開口部等の意匠工夫で圧迫感・威圧感を軽減（規模が大きい場合）","□はい　□いいえ　□該当なし",1]
[null,null,"道路・河川に面する壁面等のデザイン配慮","□はい　□いいえ　□該当なし",1]
[null,null,"屋上設備の壁・ルーバー設置","□はい　□いいえ　□該当なし",1]
[null,null,"屋外階段や露出配管等の付帯物や広告物のデザイン配慮、建築物本体との調和","□はい　□いいえ　□該当なし",1]
[null,{"$f":"一般・市街地!B29","v":"材　　料"},"耐久性に優れた材料を使用","□はい　□いいえ　□該当なし",1]
[null,null,"反射光材の使用を避ける、使用時は着色等による反射軽減を図る","□はい　□いいえ　□該当なし",1]
[null,null,"地域を特徴づける素材を活用","□はい　□いいえ　□該当なし",1]
[null,{"$f":"一般・市街地!B32","v":"色 彩 等"},"自然の色彩を基調、周辺の自然景観と調和した色調","□はい　□いいえ　□該当なし",1,"着色した立面図等に\nマンセル値を\n記載してください。"]
[null,null,"使用色数を少なくする","□はい　□いいえ　□該当なし",1]
[null,null,"ネオンサイン、点滅、光源で動きのあるものは設置しない。建築物等をライトアップしない","□はい　□いいえ　□該当なし",1]
[null,null,"（屋根）R、YR、Y、GYは彩度７以下　その他は彩度４以下　明度は周辺と調和","□はい　□いいえ　□該当なし",1]
[null,null,"（外壁）R、YR、Y、GYは彩度７以下　その他は彩度４以下　明度は周辺と調和",{"$error":"#N/A"}]
[null,null,"＜適用除外＞外壁各面の見付面積の１／５以内のアクセント色で、支障ないもの",{"$error":"#N/A"}]
[null,null,"＜適用除外＞石・木材・土・レンガ・ガラス等、素材本来の色彩のもの",{"$error":"#N/A"}]
[null,null,"＜適用除外＞地域の伝統継承色彩のもの",{"$error":"#N/A"}]
[null,null,"＜適用除外＞その他法令義務のもの",{"$error":"#N/A"}]
[{"$f":"一般・市街地!A46","v":"（外構など）"},{"$f":"一般・市街地!B42","v":"敷地の緑化"},"敷地境界には樹木等を活用し、門、塀等による場合は、周辺の景観と調和","□はい　□いいえ　□該当なし",1]
[null,null,"比較的大規模な建築物等は、建物周囲の緑化等で威圧感・圧迫感軽減に努める","□はい　□いいえ　□該当なし",1]
[null,null,"駐車・駐輪場・焼却炉等は道路から直接見えにくいよう周囲や場内の植栽等、緑化に努める","□はい　□いいえ　□該当なし",1]
[null,null,"使用する樹種は、周辺の樹林等、周辺の景観と調和すること","□はい　□いいえ　□該当なし",1]
[null,null,"河川等がある場合は、樹木を活用し、水辺の景観に配慮",{"$f":"VLOOKUP(E36,$G$4:$I$7,3,TRUE)","v":"□はい　□いいえ　□該当なし"},1]
[null,null,"敷地内の樹木は、残すように努める","□はい　□いいえ　□該当なし",1]
[{"$f":"一般・市街地!A42","v":"建 築 物\n工 作 物\nの建設\n外観変更"},{"$f":"西箕輪・田園!B37","v":"特定外観意匠に関する付加基準\n（看板、広告などがある場合）"},"次に掲げる広告物以外は設置しない","□はい　□いいえ　■該当なし",4,"自販機、看板、広告等を\n設置、表示等する場合は\n内容確認してください。\nあわせて\n伊那市屋外広告物条例の\n手続きを確認ください。"]
[null,null,"①公職選挙法その他の法令の規定に基づく選挙運動のために表示し、又は設置するもの",{"$error":"#N/A"}]
[null,null,"②法令の規定により表示又は設置を義務づけられたもの",{"$error":"#N/A"}]
[null,null,"③国又は地方公共団体が表示し、又は設置するもので、公益上必要と認められるもの",{"$error":"#N/A"}]
[null,null,"④自己の氏名、事業又は営業に関し、自己の居住、事務所、営業所等に表示するもので",{"$error":"#N/A"}]
[null,null,"表示面積の合計１０㎡以下のもの",{"$error":"#N/A"}]
[null,null,"⑤祭典その他年中行事等のために慣例上使用するもの",{"$error":"#N/A"}]
[null,null,"⑥一時的又は仮設的なもので表示期間が３０日を越えないもの",{"$error":"#N/A"}]
[null,null,"⑦　①から⑥までに掲げるもののほか、営利を目的としないもので次に掲げるもの",{"$error":"#N/A"}]
[null,null,"・交通安全、公衆衛生、水火災警報その他公益に関する宣伝告知のためにするもの",{"$error":"#N/A"}]
[null,null,"・会合その他催物に関するもの",{"$error":"#N/A"}]
[null,null,"・はり紙、はり札、立看板及び広告幕類",{"$error":"#N/A"}]
[null,null,"・報道機関が設置する時事速報等を掲出する物件",{"$error":"#N/A"}]
[null,null,"⑧事業所や施設等への案内を目的としたもので、次の要件をすべて満たすもの",{"$error":"#N/A"}]
[null,null,"・表示面の地盤面からの高さが3.5mまでのもの",{"$error":"#N/A"}]
[null,null,"・表示面積の合計が4㎡未満のもの",{"$error":"#N/A"}]
[null,null,"・基調色は、白色、銀色、青系色、茶系色の組み合わせ及び木の地肌のもの",{"$error":"#N/A"}]
[null,null,"・支柱の色は、黒色、白色、グレー系色、焦げ茶色のもの",{"$error":"#N/A"}]
[null,null,"④及び⑧にあっては、落ち着いた色彩を基調とする","□はい　□いいえ　■該当なし",4]
[null,null,"周辺の景観と調和した色調・意匠とする","□はい　□いいえ　■該当なし",4]
[null,null,"道路から1m以上かつ交差点から10m以上離す","□はい　□いいえ　■該当なし",4]
[{"$f":"西箕輪・田園!A58","v":"土 地 の 形 質 の 変 更\n（300㎡＜ または H＞2M）"},null,"大規模な法面、擁壁を生じないようにし、緩やかな勾配、緑化に努める","□はい　□いいえ　■該当なし",4]
[null,null,"擁壁は材料や表面処理の工夫、前面緑化等により周辺との調和を図る","□はい　□いいえ　■該当なし",4]
[null,null,"敷地内の樹林、樹木、河川、水辺等は極力保全し、活用に努める","□はい　□いいえ　■該当なし",4]
[{"$f":"一般・市街地!A62","v":"土石の採取及び鉱物の掘採"},null,"周辺から目立たないよう採取の位置・工法を工夫し、敷地周辺の緑化等に努める","□はい　□いいえ　■該当なし",4]
[null,null,"採取後、自然植生と調和した緑化で修景する","□はい　□いいえ　■該当なし",4]
[{"$f":"一般・市街地!A64","v":"屋外における物件の堆積"},null,"高さをできるだけ低くし、整然と、威圧感の無いよう堆積する","□はい　□いいえ　■該当なし",4]
[null,null,"道路等から見えにくいよう遮蔽（植栽を行い周辺景観と調和するもので遮蔽）","□はい　□いいえ　■該当なし",4]